Cogmind - Beta 16 @@@ ROGUE MODE // 2025.12.10 @ 07:09:00 Player: Gatamar Result: Destroyed by D-53 Grenadier with Mini Grenade Launcher Performance ------------- Evolutions (0) 0 Regions Visited (2) 400 Robots Destroyed (11) 55 Value Destroyed (175) 175 Prototype IDs (0) 0 Alien Tech Used (0) 0 Bonus (0) 0 TOTAL SCORE: 630 Bonus ------- None Cogmind --------- Core Integrity 0/250 Matter 210/300 Energy 87/100 System Corruption 0% Temperature Cool (0) Movement Core (400) Ox7 Location -10/Mines Parts ------- > --- POWER (1) -------- (None) > --- PROPULSION (2) --- (None) > --- UTILITY (2) ------ Large Storage Unit > --- WEAPON (2) ------- Light Assault Rifle Light Cannon > --- INVENTORY (15) --- Light Ion Engine Light Ion Engine Improved Treads Improved Treads Improved Treads Small Storage Unit Terrain Scan Processor Hardened Light Armor Plating Hardened Light Armor Plating Field Recycling Unit (0) Assault Rifle Assault Rifle Datajack Peak State ------------ > --- POWER ------------ Light Nuclear Core > --- PROPULSION ------- Light Treads Light Treads > --- UTILITY ---------- Large Storage Unit Improved Terrain Scanner > --- WEAPON ----------- Light Assault Rifle Light Cannon > --- INVENTORY -------- Light Ion Engine Light Ion Engine Improved Treads Improved Treads Improved Treads Aluminum Leg Aluminum Leg Small Storage Unit Hardened Light Armor Plating Hardened Light Armor Plating Field Recycling Unit Assault Rifle Assault Rifle Light Cannon Datajack [Rating: 13] Favorites ----------- Power Light Nuclear Core Engine Light Ion Engine Power Core Light Nuclear Core Propulsion Light Treads Treads Light Treads Utility Improved Terrain Scanner Device Improved Terrain Scanner Storage Small Storage Unit Weapon Light Assault Rifle Ballistic Gun Light Assault Rifle Ballistic Cannon Light Cannon Special Weapon Welding Torch Special Melee Weapon Datajack Build | -11 -10 -10 ------- Run | Yrd Mat Min Slots Evolved . | . . . Power . | . . . Propulsion . | . . . Utility . | . . . Weapon . | . . . Parts Attached 13 | 7 5 1 Power 2 | 1 1 . Engine 1 | 1 . . Core 1 | . 1 . Reactor . | . . . Propulsion 2 | 2 . . Treads 2 | 2 . . Leg . | . . . Wheel . | . . . Hover . | . . . Flight . | . . . Utility 3 | 2 1 . Device 1 | 1 . . Storage 2 | 1 1 . Processor . | . . . Hackware . | . . . Protection . | . . . Artifact . | . . . Weapon 6 | 2 3 1 Energy Gun . | . . . Energy Cannon . | . . . Ballistic Gun 2 | 2 . . Ballistic Cannon 2 | . 1 1 Launcher . | . . . Special Weapon 1 | . 1 . Impact Weapon . | . . . Slashing Weapon . | . . . Piercing Weapon . | . . . Special Melee Weapon 1 | . 1 . Unidentified Prototypes . | . . . Parts Lost 5 | . . 5 Power 1 | . . 1 Propulsion 2 | . . 2 Utility 1 | . . 1 Weapon 1 | . . 1 Highest Loss Streak 5 | . . 5 To Critical Strikes . | . . . Average Backups 8 | 2 7 14 Power 1 | . 1 2 Propulsion 2 | 1 2 3 Utility 1 | . . 5 Weapon 1 | . 1 3 Tool/Special . | . . . Unused Backups 11 | . 2 9 Power 1 | . . 1 Propulsion 5 | . 2 3 Utility 4 | . . 4 Weapon 1 | . . 1 Tool/Special . | . . . Average Slot Usage (%) 98 | . 99 97 Engine 2 | . 2 . Core 11 | . 11 12 Treads 27 | . 28 27 Device 13 | . 14 13 Storage 14 | . 14 14 Ballistic Gun 17 | . 18 14 Ballistic Cannon 9 | . 7 14 Peak Build Rating 13 | 9 13 13 Average Rating 10 | 5 10 12 On Entrance 7 | . 9 13 Avg Prop Armor Cover (%) 11 | . . 11 Naked Turns . | . . . Heaviest Build 30 | 12 30 30 Greatest Support 40 | 40 40 40 Greatest Overweight (x) 1 | . . 1 Average Overweight (x) . | . . . Largest Inventory Capacity 15 | 8 15 15 Average Capacity 11 | 7 10 15 Most Carried 15 | 3 15 14 Average Carried 8 | 2 7 13 Final Capacity 15 | 8 15 15 Final Carried 14 | 3 14 13 Class Distribution -------------------- 100% | Mutant Dominant Class ---------------- Mutant | -10/Materials Mutant | -10/Mines Resources | -11 -10 -10 ----------- Run | Yrd Mat Min Matter Collected 407 | 165 193 49 Remotely . | . . . Salvage Created 340 | 82 222 36 Parts 31 | 9 22 . Haulers Intercepted . | . . . Recyclers Shooed . | . . . Parts Field Recycled . | . . . Retrieved Matter . | . . . Parts Self-Destructed . | . . . Prevented . | . . . Parts Restored . | . . . Kills | -11 -10 -10 ------- Run | Yrd Mat Min Combat Hostiles Destroyed 12 | . 7 5 Guns 8 | . 6 2 Cannons 4 | . 1 3 Classes Destroyed 7 | 2 4 1 Builder 1 | . 1 . Tunneler 1 | 1 . . Recycler 1 | 1 . . Watcher 1 | . 1 . Swarmer 5 | . 5 . Grunt 2 | . 2 . Assembled 5 | . . 5 Best Kill Streak 3 | 2 3 3 Combat Bots Only 3 | . 3 3 Max Kills in Single Turn 1 | 1 1 1 Gunslinging . | . . . Exploded . | . . . Melee . | . . . Uniques/NPCs Destroyed . | . . . Combat | -11 -10 -10 -------- Run | Yrd Mat Min Hostile Shots Fired 83 | . 27 56 Missed 26 | . 7 19 Hits 57 | . 20 37 Melee 5 | . . 5 Projectile 52 | . 20 32 AOE 8 | . . 8 Critical Strikes 1 | . . 1 Part Disruptions 1 | . . 1 Damage Taken 920 | . 185 735 Core 252 | . 25 227 Absorbed by Shields . | . . . Core Remaining (%) 100 | 100 . . Volleys Fired 46 | 9 22 15 Largest 2 | 2 2 2 Hottest 50 | 40 50 50 Shots Fired 88 | 18 40 30 Gun 65 | 18 32 15 Cannon 19 | . 4 15 Launcher . | . . . Special 4 | . 4 . Kinetic 84 | 18 36 30 Thermal 4 | . 4 . Explosive . | . . . Electromagnetic . | . . . Robot Hit Streak 6 | 5 6 5 Robot Miss Streak 2 | 2 2 2 Penetration Max . | . . . Secondary Targets 2 | . 2 . Max Gunslinging Chain 1 | . 1 . Shots Hit Robots 51 | 10 21 20 Core Hits 28 | 4 12 12 Critical Kills . | . . . Critical Parts Destroyed . | . . . Critical Strikes . | . . . Melee Attacks . | . . . Impact . | . . . Slashing . | . . . Piercing . | . . . Sneak Attacks . | . . . Combat Hostiles . | . . . Follow-up Attacks . | . . . Damage Inflicted 609 | 110 235 264 Guns 379 | 110 196 73 Cannons 227 | . 36 191 Explosions . | . . . Melee . | . . . Ramming 3 | . 3 . Kinetic 606 | 110 232 264 Thermal . | . . . Explosive . | . . . Electromagnetic . | . . . Impact . | . . . Slashing . | . . . Piercing . | . . . Highest Corruption . | . . . Average Corruption . | . . . Corruption Purged . | . . . Corruption Blocked . | . . . Overload Shots . | . . . Overflow Damage . | . . . Projectiles . | . . . Explosions . | . . . Melee . | . . . Knockbacks 8 | . . 8 Impact . | . . . Kinetic 7 | . . 7 Secondary 1 | . . 1 Self-Inflicted Damage . | . . . Shots . | . . . Rammed 1 | . 1 . Targets Rammed 1 | . 1 . Kicked . | . . . Crushed . | . . . Highest Temperature 45 | . 14 45 Average Temperature 13 | . 8 15 Received Heat Transfer 105 | . 45 60 Siege Activations . | . . . Martial Activations . | . . . Shielding Activations . | . . . Robots Disrupted . | . . . Combat Hostiles . | . . . Robots Corrupted . | . . . Combat Hostiles . | . . . Parts Fried . | . . . Impact Corruptions . | . . . Robots Melted . | . . . Combat Hostiles . | . . . Parts Melted . | . . . Heat Transferred . | . . . Parts Sabotaged . | . . . Parts Stolen . | . . . Parts Stripped . | . . . Power Chain Reactions . | . . . Alert | -11 -10 -10 ------- Run | Yrd Mat Min Maximum Alert Level . | . . . Low Security (%) 100 | 100 100 100 Level 1 . | . . . Level 2 . | . . . Level 3 . | . . . Level 4 . | . . . Level 5 . | . . . High Security . | . . . Max Security . | . . . Peak Influence 80 | 5 80 7 Initial 7 | . . 7 Average 14 | . 20 . Influence Increases 231 | 10 221 . Destroy 0b10 Robot/C 140 | . 140 . Destroy 0b10 Robot/NC 20 | 10 10 . Destroy Leader 32 | . 32 . Successful Hack 9 | . 9 . Disable Machine 15 | . 15 . Lose Combat Pursuer 15 | . 15 . Influence Decreases 231 | 10 202 19 Entered New Map 12 | . . 12 Time Decay 219 | 10 202 7 Squads Dispatched . | . . . Investigation . | . . . Extermination . | . . . Reinforcement . | . . . Assault . | . . . Garrison . | . . . Intercept . | . . . Searches Triggered . | . . . Construction Impeded . | . . . Haulers Reinforced . | . . . Active Scanning Responses . | . . . Cargo Convoy Interrupts . | . . . Stealth | -11 -10 -10 --------- Run | Yrd Mat Min Distress Signals . | . . . Communications Jammed . | . . . Distress Signals . | . . . Times Spotted 29 | . 17 12 Peak Tracking Total 5 | . 4 5 Tactical Retreats 1 | . 1 . Traps | -11 -10 -10 ------- Run | Yrd Mat Min Traps Triggered . | . . . Indirectly . | . . . Trap Hack Attempts . | . . . Triggered . | . . . Disarmed . | . . . Reprogrammed . | . . . Reused . | . . . Traps Extracted . | . . . Installed . | . . . Triggered . | . . . Machines | -11 -10 -10 ---------- Run | Yrd Mat Min Machines Disabled 1 | . 1 . Max in Single Turn 1 | . 1 . Machines Repaired . | . . . Machines Dismantled . | . . . Machines Sabotaged . | . . . Overloaded Fab Kills . | . . . Hacking | -11 -10 -10 --------- Run | Yrd Mat Min Machines Accessed 2 | . 2 . Terminals 2 | . 2 . Fabricators . | . . . Repair Stations . | . . . Recycling Units . | . . . Scanalyzers . | . . . Garrison Access . | . . . Total Hacks 7 | . 7 . Successful 4 | . 4 . Failed 3 | . 3 . Catastrophic . | . . . Database Lockouts . | . . . Manual 4 | . 4 . Terminals 7 | . 7 . Fabricators . | . . . Repair Stations . | . . . Recycling Units . | . . . Scanalyzers . | . . . Garrison Access . | . . . Terminal Hacks 4 | . 4 . Emergency Access Points 2 | . 2 . Locate Traps 1 | . 1 . Zone Layout 1 | . 1 . Fabricator Hacks . | . . . Repair Station Hacks . | . . . Recycling Unit Hacks . | . . . Scanalyzer . | . . . Garrison Access Hacks . | . . . Unauthorized Hacks . | . . . Terminals . | . . . Fabricators . | . . . Repair Stations . | . . . Recycling Units . | . . . Scanalyzers . | . . . Garrison Access . | . . . Data Cores Recovered . | . . . Used . | . . . Hacking Detections 2 | . 2 . Full Trace Events . | . . . Feedback Events . | . . . Feedback Blocked . | . . . Robot Schematics Acquired . | . . . Robots Built . | . . . Authchips . | . . . Time . | . . . Total Robot Build Rating . | . . . Part Schematics Acquired . | . . . Parts Built . | . . . Authchips . | . . . Time . | . . . Total Part Build Rating . | . . . Part Studies Acquired . | . . . Parts Repaired . | . . . Time . | . . . Parts Recycled . | . . . Recycled Matter . | . . . Retrieved Matter . | . . . Retrieved Components . | . . . Parts Scanalyzed . | . . . Part Schematics Acquired . | . . . Parts Damaged . | . . . Bothacking | -11 -10 -10 ------------ Run | Yrd Mat Min Used RIF Installer . | . . . Robots Hacked . | . . . Non-combat . | . . . Combat . | . . . Robot Hacks Applied . | . . . Relay Couplers Released . | . . . Fabnet Peak Effective % . | . . . Robots Rewired . | . . . Allies Hacked . | . . . Hacks Repelled . | . . . Allies | -11 -10 -10 -------- Run | Yrd Mat Min Total Allies . | . . . Largest Group . | . . . Highest-Rated Group . | . . . Highest-Rated Ally . | . . . Total Orders . | . . . Ally Attacks . | . . . Total Damage . | . . . Kills . | . . . Allies Corrupted . | . . . Allies Melted . | . . . Intel | -11 -10 -10 ------- Run | Yrd Mat Min Active Infowar (turns) 1198 | 19 928 251 Terrain 1198 | 19 928 251 Robot Analysis Total . | . . . Derelict Logs Recovered . | . . . Drone Launches . | . . . Drone Recoveries . | . . . Exploration | -11 -10 -10 ------------- Run | Yrd Mat Min Turns Passed 1313 | 125 928 260 Spaces Moved 684 | 56 519 109 Core 2 | 2 . . Treads 682 | 54 519 109 Legs . | . . . Wheels . | . . . Hover . | . . . Flight . | . . . Fastest Speed 50 | 50 160 160 Average Speed 160 | 156 160 164 Slowest Speed 240 | 160 160 240 Overloaded Moves . | . . . Propulsion Burnouts . | . . . Robots Hopped . | . . . Potential Cave-ins . | . . . Cave-ins Triggered . | . . . Exploration Rate (%) 28 | 4 66 16 Regions Visited 2 Branch Regions 1 Pre-discovered Areas . | . . . Known Exits Taken . | . . . Unknown Exits Taken 2 | 1 1 . Scrap Searched . | . . . Spaces Dug . | . . . Terrain Destroyed . | . . . Melee . | . . . Projectile . | . . . AOE . | . . . Terrain Rammed . | . . . Walls Destroyed . | . . . Machines Disabled . | . . . Actions | -11 -10 -10 --------- Run | Yrd Mat Min Total 816 | 74 578 164 Wait 54 | . 15 39 Move 682 | 55 518 109 Hop . | . . . Pick Up 15 | 3 12 . Fast Attach 8 | 7 1 . Attach 2 | . 1 1 Detach 1 | . 1 . Swap 4 | . 4 . Drop 3 | . 3 . Fire 46 | 9 22 15 Melee . | . . . Ram . | . . . Kick . | . . . Crush 1 | . 1 . Escape Stasis . | . . . Rewire . | . . . Trap . | . . . Miscellaneous . | . . . Route ------- -11/Scrapyard -10/Materials (discovered 4 exits: [*Mat x3] / [*Min]) -10/Mines History --------- Turn | Location | Event 9 | -11/Scrapyard | Discovered new exit (range 14) 126 | -11/Scrapyard | Entered Materials 221 | -10/Materials | Discovered new exit (range 7) 318 | -10/Materials | Build established: Mutant 448 | -10/Materials | Discovered new exit (range 14) 686 | -10/Materials | Discovered new exit (range 15) 800 | -10/Materials | Discovered new exit (range 17) 1054 | -10/Materials | Entered Mines 1055 | -10/Mines | Assembled infested the area 1294 | -10/Mines | Core integrity fell below 50% 1313 | -10/Mines | Core integrity fell below 20% 1314 | -10/Mines | Destroyed by D-53 Grenadier with Mini Grenade Launcher Last Messages --------------- 01269_ Acquired 21 matter. 01272_ Seismic Survey Station disabled. 01272_ as-41390 knocked back. 01278_ as-98122 knocked back. 01283_ as-98122 destroyed. 01286_ as-72882 knocked back. 01295_ as-72882 destroyed. 01296_ Lgt. Nuclear Core destroyed. 01303_ as-98140 destroyed. 01303_ as-35826 destroyed. 01305_ Imp. Terrain Scanner destroyed. 01305_ Lgt. Treads destroyed. 01306_ The unstable cave ceiling collapses. 01307_ as-41390 destroyed. 01307_ as-51269 destroyed. 01309_ as-30521 destroyed. 01310_ The unstable cave ceiling collapses. 01310_ Lgt. Treads destroyed. 01310_ Lgt. Cannon destroyed. 01313_ D-53 Grenadier knocked back. Map ----- +----------------------------------------------------+ | ????????????????????????????????????????? | | ????????????????????????????????????????? | | ????????????????????????????????????????? | | ????????????????????????????????????????? | | ????????????????????????????????????????? | | ????????????????????????????????????????? | | ????????????????????????????????????????? | | ????????????????????????????????????????? | | ????????????????????????????????????????? | | ?????????????"??????????????????????????? | | ???????? ????? ?????????????????????????? | | ??#?#?????????"?????????????????????????? | | ????????????????????????????????????????? | | ??#??????"?????" ???????? ??????????????? | | ???????????????? ??? ##?????????????????? | | ????#?#??"????????"" #??#???????????????? | | ???????????"??????"" ????#?????????????? | | ???????????"??"?? "" #??????????????????? | | #?????? ?????????? #??#???????????????? | | ???????????????#?? #?#????????????????? | | ???####???######## #?????#????????????? | | ??## ##??# # #### #?????????????? | | ### #### ???????????????? | | ?# ## #?????????????????? | | ?# #??##?#?##?????????? | | ?# # @ ## % #??#?#?????????? | | ?## """" ## # = #??????????????? | | #?## """" #??#??????????? | | ???## """" % #?#???????????? | | ?#?## d % %???????? | | ????## % d #### ????????? | | ??#??####### ##?????????????? | | #??#?##?#?## ### ##??????????????? | | ???#??#?#??### #??#######???????????????? | | ????????#?#### #??????#?????????????????? | | ????????#?# ###??????#??#?#??????????? | | ????#???### ## ##?????#???????????????? | | ??#???????# #### #????#?????????????????? | | ???#?#????# #??? #??????#???????????????? | | ??######### ###? ##?????????????????????? | | ?#?# #? ??#????????????????????? | | ???# #??#???????????????????? | | ???# """ """ ####??????????????????????? | | ???# """ """ #?????????????????????????? | | ???# """ """ #?#???????????????????????? | | ???# #???????#?????????????????? | | ???# #???#?????????????????????? | | ???############?????????????????????????? | | ????#??????????#??#?????????????????????? | | ?????????????#??????????????????????????? | +----------------------------------------------------+ Best States ------------- Heat Dissipation 25 Energy Generation 14 Energy Capacity 160 Matter Stores 248 Matter Capacity 300 Sight Range 16 Terrain Scan Range 16 Terrain Scan Density 10 Evasion (%) 40 Recoil Reduction 2 Item Schematics ----------------- None Robot Schematics ------------------ None Fabricated ------------ Nothing Repaired ---------- Nothing Studied --------- None Alien Tech Used ----------------- None Achievements -------------- Bumper Bots Challenges ------------ None Game ------ Seed SuperchargedDamperCannon Manual? 0 Play Time 00:12:31 Cumulative 16.4 hours Start 2025.12.10 @ 06:57:33 End 2025.12.10 @ 07:09:00 Sessions 1 Manual Loads 0 Difficulty Rogue Special Mode None Game No. 46 Rogue 46 Adventurer 0 Explorer 0 Win Type - Total 0 Types 0/0/0/0/0/0/0/0/0/0 Lore% 17 Gallery% 21 Achievement% 15 Wizard Run 0 Options --------- Layout 1 ASCII 0 Keyboard 0 Movement Mouse Keybinds 0 Fullscreen 1 Font 32/SmallcapsGlow Map View 50x35 Zoom Use 0% Tactical HUD 1 Map Filters NONE Filters NONE Steam 1 RUN: 3b785024-ad93-406e-b387-56c493829c47